Cogmind - Beta 14 @@@ ROGUE MODE // 2024.08.07 @ 11:29:58 Player: weedlord420 Result: Self-destructed Performance ------------- Evolutions (4) 2000 Regions Visited (5) 1000 Robots Destroyed (31) 155 Value Destroyed (708) 708 Prototype IDs (7) 140 Alien Tech Used (0) 0 Bonus (300) 300 TOTAL SCORE: 4303 Bonus ------- Registered with UFD 300 Cogmind --------- Core Integrity 794/850 Matter 124/300 Energy 118/300 System Corruption 3% Temperature Cool (9) Movement Rolling (130) Ox2 Location -6/Factory Parts ------- > --- POWER (2) -------- Angular Momentum Engine > --- PROPULSION (4) --- Compact Wheel Gravmag System > --- UTILITY (7) ------ Scrap Suit Improved Heat Sink Medium Storage Unit Structural Scanner Target Analyzer Focal Shield > --- WEAPON (2) ------- Magnetic Acceleration Cannon Antimatter Cannon > --- INVENTORY (10) --- Advanced Signal Interpreter Improved Propulsion Shielding Shock Rifle Phase Cannon Light Assault Rifle Shotgun Improved Light Cannon CPS Tube (2) DRS Beacon (Ready) Peak State ------------ > --- POWER ------------ Angular Momentum Engine > --- PROPULSION ------- Compact Wheel Gravmag System Gravmag System > --- UTILITY ---------- Scrap Suit Improved Heat Sink Medium Storage Unit Structural Scanner Target Analyzer Focal Shield > --- WEAPON ----------- Magnetic Acceleration Cannon Antimatter Cannon > --- INVENTORY -------- Advanced Signal Interpreter Improved Propulsion Shielding Shock Rifle Phase Cannon Light Assault Rifle Shotgun Improved Light Cannon CPS Tube DRS Beacon [Rating: 49] Favorites ----------- Power Ion Engine Engine Ion Engine Propulsion Compact Wheel Treads Light Treads Wheel Compact Wheel Hover Unit Gravmag System Utility Medium Storage Unit Device Structural Scanner Storage Medium Storage Unit Processor Target Analyzer Weapon Light Assault Rifle Energy Gun EM Pulse Gun Energy Cannon Phase Cannon Ballistic Gun Light Assault Rifle Ballistic Cannon Magnetic Acceleration Cannon Build | -11 -10 -10 -9 -9 -6 ------- Run | Yrd Mat Sub Rec Scr Fac Slots Evolved 8 | . . . . . 8 Power 1 | . . . . . 1 Propulsion 2 | . . . . . 2 Utility 5 | . . . . . 5 Weapon . | . . . . . . Parts Attached 32 | 6 3 4 1 3 15 Power 4 | 1 . . . . 3 Engine 4 | 1 . . . . 3 Core . | . . . . . . Reactor . | . . . . . . Propulsion 8 | 2 . 2 1 1 2 Treads 2 | 2 . . . . . Leg . | . . . . . . Wheel 4 | . . 2 1 1 . Hover 2 | . . . . . 2 Flight . | . . . . . . Utility 9 | 1 2 1 . . 5 Device 6 | . 1 1 . . 4 Storage 2 | 1 1 . . . . Processor 1 | . . . . . 1 Hackware . | . . . . . . Protection . | . . . . . . Artifact . | . . . . . . Weapon 11 | 2 1 1 . 2 5 Energy Gun 1 | 1 . . . . . Energy Cannon 1 | . . . . . 1 Ballistic Gun 7 | 1 1 1 . 2 2 Ballistic Cannon 2 | . . . . . 2 Launcher . | . . . . . . Special Weapon . | . . . . . . Impact Weapon . | . . . . . . Slashing Weapon . | . . . . . . Piercing Weapon . | . . . . . . Special Melee Weapon . | . . . . . . Unidentified Prototypes 1 | . . . . . 1 Parts Lost 10 | . . 6 . . 4 Power 2 | . . 1 . . 1 Propulsion 6 | . . 4 . . 2 Utility 1 | . . . . . 1 Weapon 1 | . . 1 . . . Highest Loss Streak 6 | . . 6 . . 2 To Critical Strikes . | . . . . . . Average Slot Usage (%) 65 | . 96 94 61 49 69 Engine 4 | . 14 12 . . 5 Treads 6 | . 28 22 . . . Wheel 12 | . . 1 4 21 7 Hover 1 | . . . . . 6 Device 15 | . 10 14 14 14 23 Storage 12 | . 14 14 14 14 6 Energy Gun 1 | . 10 . . . . Ballistic Gun 7 | . 18 28 28 . 1 Ballistic Cannon 1 | . . . . . 7 Peak Build Rating 49 | 6 9 7 5 6 49 Average Rating 10 | 4 8 6 4 4 36 On Entrance 5 | . 6 9 4 5 6 Naked Turns . | . . . . . . Heaviest Build 38 | 14 19 19 13 13 38 Greatest Support 40 | 40 40 40 16 32 32 Greatest Overweight (x) 4 | 1 . 4 4 . 2 Average Overweight (x) . | . . . 1 . 1 Largest Inventory Capacity 10 | 8 10 10 10 10 10 Average Capacity 9 | 7 8 10 10 10 10 Most Carried 10 | 5 6 6 6 10 10 Average Carried 7 | 1 2 5 4 8 8 Final Capacity 10 | 8 10 10 10 10 10 Final Carried 10 | 1 6 4 5 10 9 Class Distribution -------------------- 77% | Mutant 22% | Scavenger-Mutant Dominant Class ---------------- Mutant | -10/Materials Mutant | -10/Subcaves Scavenger-Mutant | -9/Recycling Mutant | -9/Scraptown Scavenger-Mutant | -6/Factory Resources | -11 -10 -10 -9 -9 -6 ----------- Run | Yrd Mat Sub Rec Scr Fac Matter Collected 730 | 237 87 135 54 30 187 Remotely . | . . . . . . Salvage Created 965 | . 416 147 130 . 272 Parts 71 | . 32 15 5 . 19 Haulers Intercepted 1 | . 1 . . . . Recyclers Shooed 1 | . . . . . 1 Parts Field Recycled . | . . . . . . Retrieved Matter . | . . . . . . Parts Self-Destructed 17 | . . 17 . . . Prevented . | . . . . . . Kills | -11 -10 -10 -9 -9 -6 ------- Run | Yrd Mat Sub Rec Scr Fac Combat Hostiles Destroyed 22 | . 9 6 . . 7 Guns 14 | . 7 6 . . 1 Cannons 6 | . . . . . 6 AOE 2 | . 2 . . . . Classes Destroyed 9 | . 6 1 . . 2 Worker 1 | . 1 . . . . Builder 3 | . 2 . . . 1 Hauler 1 | . 1 . . . . Turret 2 | . . 2 . . . Watcher 2 | . 1 . . . 1 Swarmer 13 | . 3 6 . . 4 Grunt 7 | . 6 . . . 1 Sentry 1 | . . . . . 1 Programmer 1 | . . . . . 1 Best Kill Streak 4 | . 3 3 . . 4 Combat Bots Only 3 | . 3 3 . . 2 Max Kills in Single Turn 2 | . 1 1 . . 2 Gunslinging . | . . . . . . Exploded 1 | . 1 . . . . Melee . | . . . . . . Uniques/NPCs Destroyed . | . . . . . . Combat | -11 -10 -10 -9 -9 -6 -------- Run | Yrd Mat Sub Rec Scr Fac Hostile Shots Fired 227 | . 45 115 . . 67 Missed 81 | . 14 43 . . 24 Damage Taken 1422 | . 333 520 . . 569 Core 187 | . 24 107 . . 56 Absorbed by Shields . | . . . . . . Ignored by Resistances 27 | . . . . . 27 Regen/Repaired (Parts) 229 | . . . . 229 . Core Remaining (%) 73 | 100 . . . 47 . Volleys Fired 97 | . 37 27 7 . 26 Largest 2 | . 2 2 2 . 2 Hottest 138 | . 60 40 40 . 138 Shots Fired 193 | . 74 54 14 . 51 Gun 148 | . 74 54 14 . 6 Cannon 45 | . . . . . 45 Launcher . | . . . . . . Special . | . . . . . . Kinetic 149 | . 43 54 14 . 38 Thermal 13 | . . . . . 13 Explosive . | . . . . . . Electromagnetic 31 | . 31 . . . . Robot Hit Streak 19 | . 15 19 14 . 16 Robot Miss Streak 8 | . 5 3 . . 8 Penetration Max . | . . . . . . Secondary Targets 4 | . 1 3 . . . Max Gunslinging Chain 1 | . 1 1 . . . Shots Hit Robots 119 | . 47 37 13 . 22 Core Hits 52 | . 20 15 4 . 13 Critical Kills . | . . . . . . Critical Parts Destroyed 1 | . . . . . 1 Critical Strikes 3 | . . . . . 3 Destroy 1 | . . . . . 1 Blast 2 | . . . . . 2 Melee Attacks . | . . . . . . Impact . | . . . . . . Slashing . | . . . . . . Piercing . | . . . . . . Sneak Attacks . | . . . . . . Combat Hostiles . | . . . . . . Follow-up Attacks . | . . . . . . Damage Inflicted 2047 | . 883 353 101 . 710 Guns 1160 | . 612 353 101 . 94 Cannons 616 | . . . . . 616 Explosions 271 | . 271 . . . . Melee . | . . . . . . Ramming . | . . . . . . Kinetic 1350 | . 349 353 101 . 547 Thermal 434 | . 271 . . . 163 Explosive . | . . . . . . Electromagnetic 263 | . 263 . . . . Impact . | . . . . . . Slashing . | . . . . . . Piercing . | . . . . . . Highest Corruption 3 | . . . . . 3 Average Corruption 3 | . . . . . 3 Corruption Purged . | . . . . . . Corruption Blocked . | . . . . . . Effects 6 | . . . . . 6 Message Errors 1 | . . . . . 1 Matter Fused 1 | . . . . . 1 Heat Flow Errors 2 | . . . . . 2 Energy Discharges 1 | . . . . . 1 Data Loss (minor) 1 | . . . . . 1 Overload Shots . | . . . . . . Overflow Damage 14 | . 14 . . . . Projectiles . | . . . . . . Explosions 14 | . 14 . . . . Melee . | . . . . . . Knockbacks 5 | . . . . . 5 Impact . | . . . . . . Kinetic 5 | . . . . . 5 Secondary . | . . . . . . Self-Inflicted Damage . | . . . . . . Shots . | . . . . . . Rammed . | . . . . . . Targets Rammed . | . . . . . . Kicked . | . . . . . . Crushed . | . . . . . . Highest Temperature 204 | . 42 . . . 204 Average Temperature 49 | . 22 . . . 62 Received Heat Transfer 546 | . 126 282 . . 138 Siege Activations . | . . . . . . Robots Corrupted . | . . . . . . Combat Hostiles . | . . . . . . Parts Fried . | . . . . . . Impact Corruptions . | . . . . . . Robots Melted . | . . . . . . Combat Hostiles . | . . . . . . Parts Melted . | . . . . . . Heat Transferred 535 | . 350 . . . 185 Parts Sabotaged . | . . . . . . Parts Stolen . | . . . . . . Parts Stripped . | . . . . . . Power Chain Reactions 3 | . 3 . . . . Alert | -11 -10 -10 -9 -9 -6 ------- Run | Yrd Mat Sub Rec Scr Fac Peak Influence 297 | . 271 . 50 . 297 Initial 40 | . . . 40 . . Average 117 | . 150 . 44 . 124 Maximum Alert Level 1 | . 1 . . . 1 Low Security (%) 71 | 100 54 . 100 . 73 Level 1 28 | . 45 . . . 26 Level 2 . | . . . . . . Level 3 . | . . . . . . Level 4 . | . . . . . . Level 5 . | . . . . . . High Security . | . . . . . . Max Security . | . . . . . . Squads Dispatched 7 | . 1 . . . 6 Investigation 3 | . 1 . . . 2 Extermination . | . . . . . . Reinforcement . | . . . . . . Assault . | . . . . . . Garrison 4 | . . . . . 4 Intercept . | . . . . . . Searches Triggered . | . . . . . . Construction Impeded . | . . . . . . Haulers Reinforced . | . . . . . . Active Scanning Responses . | . . . . . . Cargo Convoy Interrupts . | . . . . . . Stealth | -11 -10 -10 -9 -9 -6 --------- Run | Yrd Mat Sub Rec Scr Fac Distress Signals 1 | . 1 . . . . Communications Jammed . | . . . . . . Distress Signals . | . . . . . . Times Spotted 40 | . 12 12 . . 16 Peak Tracking Total 6 | . 3 6 . . 3 Tactical Retreats 3 | . . 2 . . 1 Traps | -11 -10 -10 -9 -9 -6 ------- Run | Yrd Mat Sub Rec Scr Fac Traps Triggered 1 | . . . . . 1 Indirectly . | . . . . . . Trap Hack Attempts . | . . . . . . Triggered . | . . . . . . Disarmed . | . . . . . . Reprogrammed . | . . . . . . Reused . | . . . . . . Traps Extracted . | . . . . . . Installed . | . . . . . . Triggered 3 | . . 3 . . . Machines | -11 -10 -10 -9 -9 -6 ---------- Run | Yrd Mat Sub Rec Scr Fac Machines Disabled 2 | . 1 . . . 1 Max in Single Turn 1 | . 1 . . . 1 Machines Repaired . | . . . . . . Machines Dismantled . | . . . . . . Machines Sabotaged . | . . . . . . Overloaded Fab Kills . | . . . . . . Hacking | -11 -10 -10 -9 -9 -6 --------- Run | Yrd Mat Sub Rec Scr Fac Machines Accessed 17 | . 2 1 3 9 2 Terminals 3 | . 2 . 1 . . Fabricators . | . . . . . . Repair Stations . | . . . . . . Recycling Units 1 | . . . . . 1 Scanalyzers . | . . . . . . Garrison Access 1 | . . . . . 1 Total Hacks 99 | . 7 4 25 57 6 Successful 92 | . 2 4 25 57 4 Failed 7 | . 5 . . . 2 Catastrophic . | . . . . . . Database Lockouts . | . . . . . . Manual 14 | . 7 . 1 . 6 Terminals 8 | . 7 . 1 . . Fabricators . | . . . . . . Repair Stations . | . . . . . . Recycling Units 3 | . . . . . 3 Scanalyzers . | . . . . . . Garrison Access 3 | . . . . . 3 Terminal Hacks 87 | . 1 4 25 57 . Record 78 | . . 4 24 50 . Robot Analysis 6 | . . . . 6 . Terminal Index 2 | . 1 . 1 . . Derelict Proto ID Bank 1 | . . . . 1 . Fabricator Hacks . | . . . . . . Repair Station Hacks . | . . . . . . Recycling Unit Hacks . | . . . . . . Scanalyzer . | . . . . . . Garrison Access Hacks . | . . . . . . Unauthorized Hacks 5 | . 1 . . . 4 Terminals 1 | . 1 . . . . Operators 1 | . 1 . . . . Fabricators . | . . . . . . Repair Stations 1 | . . . . . 1 Recycling Units . | . . . . . . Fedlink 1 | . . . . . 1 Scanalyzers . | . . . . . . Garrison Access 3 | . . . . . 3 Broadcast 1 | . . . . . 1 Reprogram 1 | . . . . . 1 Watchers 1 | . . . . . 1 Data Cores Recovered . | . . . . . . Used . | . . . . . . Hacking Detections 2 | . 2 . . . . Full Trace Events 1 | . 1 . . . . Feedback Events . | . . . . . . Feedback Blocked . | . . . . . . Robot Schematics Acquired . | . . . . . . Robots Built . | . . . . . . Authchips . | . . . . . . Time . | . . . . . . Total Robot Build Rating . | . . . . . . Part Schematics Acquired . | . . . . . . Parts Built . | . . . . . . Authchips . | . . . . . . Time . | . . . . . . Total Part Build Rating . | . . . . . . Parts Repaired . | . . . . . . Time . | . . . . . . Parts Recycled . | . . . . . . Recycled Matter . | . . . . . . Retrieved Matter . | . . . . . . Retrieved Components . | . . . . . . Parts Scanalyzed . | . . . . . . Part Schematics Acquired . | . . . . . . Parts Damaged . | . . . . . . Bothacking | -11 -10 -10 -9 -9 -6 ------------ Run | Yrd Mat Sub Rec Scr Fac Used RIF Installer . | . . . . . . Robots Hacked . | . . . . . . Non-combat . | . . . . . . Combat . | . . . . . . Robot Hacks Applied . | . . . . . . Relay Couplers Released . | . . . . . . Fabnet Peak Effective % . | . . . . . . Robots Rewired . | . . . . . . Allies Hacked . | . . . . . . Hacks Repelled . | . . . . . . Allies | -11 -10 -10 -9 -9 -6 -------- Run | Yrd Mat Sub Rec Scr Fac Total Allies 1 | . . . . . 1 Largest Group 1 | . . . . . 1 Highest-Rated Group 29 | . . . . . 29 Highest-Rated Ally 29 | . . . . . 29 Total Orders . | . . . . . . Ally Attacks 17 | . . . . . 17 Total Damage 194 | . . . . . 194 Kills 1 | . . . . . 1 Allies Corrupted . | . . . . . . Allies Melted . | . . . . . . Intel | -11 -10 -10 -9 -9 -6 ------- Run | Yrd Mat Sub Rec Scr Fac Robot Analysis Total 6 | . . . . 6 . Derelict Logs Recovered . | . . . . . . Drone Launches . | . . . . . . Drone Recoveries . | . . . . . . Exploration | -11 -10 -10 -9 -9 -6 ------------- Run | Yrd Mat Sub Rec Scr Fac Turns Passed 3665 | 54 415 487 156 1927 626 Spaces Moved 2793 | 37 151 226 79 1902 398 Core 63 | 16 . 12 35 . . Treads 381 | 21 151 209 . . . Legs . | . . . . . . Wheels 2349 | . . 5 44 1902 398 Hover . | . . . . . . Flight . | . . . . . . Fastest Speed 50 | 50 160 80 100 100 100 Average Speed 113 | 115 160 163 166 100 122 Slowest Speed 250 | 160 160 250 250 100 130 Overloaded Moves . | . . . . . . Propulsion Burnouts . | . . . . . . Robots Hopped . | . . . . . . Cave-ins Triggered . | . . . . . . Exploration Rate (%) 28 | 3 30 15 13 94 13 Regions Visited 5 Branch Regions 3 Pre-discovered Areas 1 | . . 1 . . . Known Exits Taken 1 | . . 1 . . . Unknown Exits Taken 4 | 1 1 . 1 1 . Scrap Searched 4 | . . . . 4 . Spaces Dug . | . . . . . . Terrain Destroyed 32 | . 13 . . . 19 Melee . | . . . . . . Projectile 19 | . . . . . 19 AOE 13 | . 13 . . . . Terrain Rammed . | . . . . . . Walls Destroyed . | . . . . . . Machines Disabled . | . . . . . . Actions | -11 -10 -10 -9 -9 -6 --------- Run | Yrd Mat Sub Rec Scr Fac Total 3104 | 48 251 299 92 1929 485 Wait 146 | . 53 42 4 14 33 Move 2788 | 36 150 225 78 1901 398 Hop . | . . . . . . Pick Up 32 | 6 7 1 2 5 11 Fast Attach 2 | 1 . . . . 1 Attach 24 | 5 1 3 1 3 11 Detach 5 | . . . . 4 1 Swap 6 | . 2 1 . . 3 Drop 4 | . 1 . . 2 1 Fire 97 | . 37 27 7 . 26 Melee . | . . . . . . Ram . | . . . . . . Kick . | . . . . . . Crush . | . . . . . . Escape Stasis . | . . . . . . Rewire . | . . . . . . Trap . | . . . . . . Miscellaneous . | . . . . . . Route ------- -11/Scrapyard -10/Materials (discovered 3 exits: [*Mat] / [*Min] / *Sub) -10/Subcaves (discovered 3 exits: Mat x2 / *Rec) -9/Recycling -9/Scraptown (discovered 2 exits: *Fac x2) -6/Factory History --------- Turn | Location | Event 16 | -11/Scrapyard | Discovered new exit (range 15) 55 | -11/Scrapyard | Entered Materials 113 | -10/Materials | Discovered new exit (range 15) 223 | -10/Materials | Discovered new exit (range 15) 310 | -10/Materials | Build established: Mutant 466 | -10/Materials | Discovered new exit (range 3) 470 | -10/Materials | Entered Subcaves 595 | -10/Subcaves | Visited Clippyterm 600 | -10/Subcaves | Identified exit to Materials 600 | -10/Subcaves | Identified exit to Recycling 600 | -10/Subcaves | Learned location of Deep Caves (-7) 719 | -10/Subcaves | Curiously followed by a Cobbler waking with a query about "LVR3C" 922 | -10/Subcaves | Core integrity fell below 50% 932 | -10/Subcaves | Lost 6 parts (1p4n1w) 957 | -10/Subcaves | Entered Recycling 958 | -9/Recycling | Met a Zionite searching for Scraptown 1082 | -9/Recycling | Scanned before Scraplab entrance 1094 | -9/Recycling | Discovered new exit (range 11) 1097 | -9/Recycling | Entered Scraplab 1113 | -9/Recycling | Entered Scraptown 1232 | -9/Scraptown | Visited Cyclists 1262 | -9/Scraptown | Visited Red Mages 1309 | -9/Scraptown | Visited SPCMW 1371 | -9/Scraptown | Heard Great Nut preacher, LISTEN AND RECITE! 1396 | -9/Scraptown | Visited UFD Registry 1414 | -9/Scraptown | Visited CR-KLE's Repair Center 1423 | -9/Scraptown | CR-KLE repaired 4 parts 1441 | -9/Scraptown | Visited Comm Corps 1510 | -9/Scraptown | Visited Fellowship of the Rings 1564 | -9/Scraptown | Discovered new exit (range 5) 2149 | -9/Scraptown | Registered with UFD as "Softmaster" 2180 | -9/Scraptown | Visited Derelict Rescue Squad 2188 | -9/Scraptown | Found DRS Beacon 2220 | -9/Scraptown | Visited Science Guys 2265 | -9/Scraptown | Visited Observation Area 2375 | -9/Scraptown | Visited Scrapoid Pod Storage 2392 | -9/Scraptown | Visited Science Testing Area 2411 | -9/Scraptown | Visited Abandonware Association 2430 | -9/Scraptown | Learned abandonware demo "HACKBUD.EXE" 2430 | -9/Scraptown | Learned abandonware demo "REPAIR.EXE" 2495 | -9/Scraptown | Visited Chapter 10 2545 | -9/Scraptown | Found Scrap Suit 2585 | -9/Scraptown | Discovered new exit (range 3) 2633 | -9/Scraptown | Visited Analyses Database 2807 | -9/Scraptown | Visited Curators Association 2929 | -9/Scraptown | Entered Cyclist Reading Room 3040 | -9/Scraptown | Entered Factory 3040 | -6/Factory | Evolved 8 slots: Power x1, Propulsion x2, Utility x5 3156 | -6/Factory | Garrison activated, responded to threat 3511 | -6/Factory | Build established: Scavenger-Mutant 3660 | -6/Factory | Garrison activated, responded to threat 3666 | -6/Factory | Self-destructed Last Messages --------------- UFD!RESOURCES<32> UFD!SANITIZING UFD!... 03620_ >> BROADCAST: Garrison Access F002 dispatching Investigation squad: 3x G-50 Soldier. 03620_ ALERT: Suspicious activity at Recycling Unit F005. Dispatching Investigation squad. 03650_ System corrupted: Energy discharge (-62). 03653_ G-50 Soldier knocked back. 03654_ Ion Engine destroyed. 03659_ G-50 Soldier knocked back. 03659_ G-50 Soldier destroyed. 03660_ G-50 Soldier calls for garrison reinforcements. 03660_ ALERT: Activating Garrison Access F002. 03661_ >> BROADCAST: Garrison Access F002 dispatching Garrison squad: 2x G-50 Soldier. 03661_ U-05 Engineer builds a Wall. 03666_ Gravmag System destroyed. Map ----- +----------------------------------------------------+ | ?????????????????????????????????????????????????? | | ?????????????????????????????????????????????????? | | ?????????????????????????????????????????????????? | | ?????????????????????????????????????????????????? | | ?????????????????????????????????????????????????? | | ?????????????????????????????????????????????????? | | ?????????????????????????????????????????????????? | | ?????????????????????????????????????????????????? | | ?????????????????????????????????????????????????? | | ##???????????????????????????????????????????????? | | ####?#######?????????????????????????????????????? | | ####?#######?????????????????????????????????????? | | ##?????????????????????????????????????? | | """""" ##?????????????????????????????????????? | | """""" ##?????????????????????????????? ?? | | """""" ##??????????????????????????????###+#### | | """"" ##?????? ???????????????????# ## | | ##??????####+?????????????????????? | | # ??????## ? ??????? | | # ??????## ? ###############?????????? | | " " # ?????"## ? # ! ##?????????? | | "G" # ?????"## # ##?????????? | | " # ???? + # " " " " " ##?????????? | | # # # " " " " " ##?????????? | | +#############+###; # " " " " " ##?????????? | | % %u% @ " " " " " ##?????????? | | % g % # " " " " " ##?????##### | | % g% / " " " " " ##?######### | | # " " " " " ##?###### | | % # " " " " " =##?## | | +##### "#### T#### ?## " " " " " ##?## ### | | % # ########### ?## ##?## ####+# | | # # """ """ # ?######+#########?## ## | | """ # + """ """ # ?### ####?## ## | | """ # # """ """ # ??## ##???## ## !!! | | """ # # # ??## "Y" ##???## ## !! | | """ # # # #### """ ####### ## !! | | """ # # # ########+########### ## | | """ # # # + | | # # # ########+###########+###### | | # ########### ### # ! ### | | # ########### ?## """"""""" # """ ##? | | # ##???????????## # """ ##? | | ###### ##????????? ### """"""""" #] """ ##? | | # ########### ### # ##? | | """ # w########### ### """"""""" # """ ##? | | """ # # !# """ ##? | | """ + # """""""""? # """ ##? | | """ # # ??? ???? + ##? | | """ # # ?????????? ######+####? | +----------------------------------------------------+ Best States ------------- Heat Dissipation 51 Energy Generation 10 Energy Capacity 250 Matter Stores 300 Matter Capacity 300 Sight Range 16 Terrain Scan Density 10 Resistance: KI 20 Evasion (%) 50 Target Analysis 5 Recoil Reduction 2 Item Schematics ----------------- None Robot Schematics ------------------ None Fabricated ------------ Nothing Alien Tech Used ----------------- None Achievements -------------- None Challenges ------------ None Game ------ Seed PotentialTimingCutter Manual? 0 Play Time 00:45:17 Cumulative 65.1 hours Start 2024.08.07 @ 10:12:21 End 2024.08.07 @ 11:29:58 Sessions 1 Manual Loads 0 Difficulty Rogue Special Mode None Game No. 112 Rogue 111 Adventurer 1 Explorer 0 Win Type - Total 0 Types 0/0/0/0/0/0/0/0/0 Lore% 35 Gallery% 44 Achievement% 39 Wizard Run 0 Options --------- Layout 1 ASCII 0 Keyboard 0 Movement Mouse Keybinds 0 Fullscreen 1 Font 48/Smallcaps Map View 50x35 Zoom Use 0% Tactical HUD 1 Map Filters NONE Filters NONE Steam 1 RUN: d28fbe30-6aa5-479b-a3f1-83fb4fd67ea6